fUST/lending_fUST_20250121
["ID","MTS","AMOUNT","RATE_DAILY","PERIOD"]
[349801372,1737436239516,-500.0,0.00021917,3]
[349801373,1737436239526,-500.0,0.00021917,3]
[349801374,1737436239535,-500.0,0.00021917,3]
[349801375,1737436239546,-500.0,0.00021917,3]
[349801376,1737436239555,-500.0,0.00021917,3]
[349801377,1737436239564,-500.0,0.00021917,3]
[349801378,1737436239575,-500.0,0.00021917,3]
[349801379,1737436239585,-500.0,0.00021917,3]
[349801380,1737436239594,-500.0,0.00021917,3]
[349801381,1737436239605,-500.0,0.00021917,3]
[349801382,1737436239615,-500.0,0.00021917,3]
[349801383,1737436239624,-500.0,0.00021917,3]
[349801384,1737436239634,-500.0,0.00021917,3]
[349801387,1737436239643,-500.0,0.00021917,3]
[349801390,1737436239653,-500.0,0.00021917,3]
[349801392,1737436239662,-500.0,0.00021917,3]
[349801394,1737436239672,-1235.39,0.00021917,3]
[349801396,1737436239681,-500.0,0.00021917,3]
[349801398,1737436239691,-500.0,0.00021917,3]
[349801400,1737436239700,-500.0,0.00021917,3]
[349801402,1737436239710,-500.0,0.00021917,3]
[349801404,1737436239719,-500.0,0.00021917,3]
[349801406,1737436239728,-500.0,0.00021917,3]
[349801408,1737436239738,-500.0,0.00021917,3]
[349801410,1737436239749,-500.0,0.00021917,3]
[349801412,1737436239759,-500.0,0.00021917,3]
[349801414,1737436239768,-796.12,0.00021917,3]
[349801416,1737436239778,-500.0,0.00021917,3]
[349801418,1737436239788,-492.76477719,0.00021917,3]
[349801420,1737436239798,-500.0,0.00021917,3]
[349801422,1737436239808,-209.95370714,0.00021917,3]
[349801424,1737436239819,-500.0,0.00021917,3]
[349801426,1737436239828,-500.0,0.00021917,3]
[349801428,1737436239839,-500.0,0.00021917,3]
[349801430,1737436239849,-500.0,0.00021917,3]
[349801432,1737436239859,-500.0,0.00021917,3]
[349801434,1737436239868,-998.97,0.00021917,3]
[349801436,1737436239877,-550.77755225,0.00021917,3]
[349801438,1737436239887,-500.0,0.00021917,3]
[349801440,1737436239896,-604.25,0.00021917,3]
[349801442,1737436239907,-500.0,0.00021917,3]
[349801444,1737436239918,-188.0,0.00021917,2]
[349801446,1737436239927,-500.0,0.00021917,3]
[349801448,1737436239937,-500.0,0.00021917,3]
[349801450,1737436239946,-500.0,0.00021917,3]
[349801452,1737436239955,-500.0,0.00021917,3]
[349801454,1737436239965,-500.0,0.00021917,3]
[349801456,1737436239975,-500.0,0.00021917,3]
[349801458,1737436239985,-500.0,0.00021917,3]
[349801460,1737436239995,-500.0,0.00021917,3]
[349801463,1737436240004,-500.0,0.00021917,3]
[349801464,1737436240014,-500.0,0.00021917,3]
[349801466,1737436240024,-500.0,0.00021917,3]
[349801469,1737436240033,-500.0,0.00021917,3]
[349801471,1737436240046,-500.0,0.00021917,3]
[349801473,1737436240056,-500.0,0.00021917,3]
[349801475,1737436240065,-500.0,0.00021917,3]
[349801477,1737436240075,-500.0,0.00021917,3]
[349801479,1737436240085,-500.0,0.00021917,3]
[349801481,1737436240095,-500.0,0.00021917,3]
[349801483,1737436240105,-500.0,0.00021917,3]
[349801485,1737436240115,-500.0,0.00021917,3]
[349801487,1737436240124,-525.08447721,0.00021917,3]
[349801489,1737436240134,-500.0,0.00021917,3]
[349801491,1737436240144,-500.0,0.00021917,3]
[349801493,1737436240153,-500.0,0.00021917,3]
[349801495,1737436240163,-500.0,0.00021917,3]
[349801497,1737436240173,-500.0,0.00021917,3]
[349801499,1737436240183,-500.0,0.00021917,3]
[349801501,1737436240193,-512.14630953,0.00021917,3]
[349801503,1737436240203,-500.0,0.00021917,3]
[349801505,1737436240213,-500.0,0.00021917,3]
[349801507,1737436240223,-500.0,0.00021917,3]
[349801509,1737436240232,-500.0,0.00021917,3]
[349801511,1737436240242,-500.0,0.00021917,3]
[349801513,1737436240251,-548.78,0.00021917,3]
[349801515,1737436240261,-500.0,0.00021917,3]
[349801517,1737436240271,-500.0,0.00021917,3]
[349801520,1737436240281,-499.3277323,0.00021917,3]
[349801522,1737436240292,-300.0,0.00021917,3]
[349801524,1737436240301,-234.98057433,0.00021917,3]
[349801526,1737436240310,-500.0,0.00021917,3]
[349801528,1737436240320,-500.0,0.00021917,3]
[349801530,1737436240329,-500.0,0.00021917,3]
[349801532,1737436240338,-502.25128899,0.00021917,3]
[349801534,1737436240347,-500.0,0.00021917,3]
[349801535,1737436240357,-500.0,0.00021917,3]
[349801538,1737436240366,-508.79451557,0.00021917,3]
[349801540,1737436240376,-500.0,0.00021917,3]
[349801542,1737436240385,-500.0,0.00021917,3]
[349801544,1737436240395,-500.0,0.00021917,3]
[349801546,1737436240404,-507.39015055,0.00021917,3]
[349801547,1737436240414,-500.0,0.00021917,3]
[349801550,1737436240423,-500.0,0.00021917,3]
[349801552,1737436240433,-500.0,0.00021917,3]
[349801554,1737436240442,-500.0,0.00021917,3]
[349801556,1737436240452,-500.0,0.00021917,3]
[349801558,1737436240461,-500.0,0.00021917,3]
[349801560,1737436240471,-500.0,0.00021917,3]
[349801562,1737436240481,-500.0,0.00021917,3]
[349801564,1737436240490,-483.60839104,0.00021917,3]
[349801566,1737436240500,-507.96490196,0.00021917,3]
[349801568,1737436240510,-500.0,0.00021917,3]
[349801570,1737436240519,-223.49032868,0.00021917,3]
[349801572,1737436240530,-505.25493076,0.00021917,3]
[349801574,1737436240541,-500.0,0.00021917,3]
[349801576,1737436240551,-500.0,0.00021917,3]
[349801578,1737436240560,-559.22,0.00021917,3]
[349801580,1737436240570,-500.0,0.00021917,3]
[349801582,1737436240581,-1333.83,0.00021917,3]
[349801584,1737436240591,-504.21417581,0.00021917,3]
[349801586,1737436240601,-500.0,0.00021917,3]
[349801588,1737436240611,-500.0,0.00021917,3]
[349801590,1737436240621,-500.0,0.00021917,3]
[349801592,1737436240630,-500.0,0.00021917,3]
[349801594,1737436240640,-610.25984198,0.00021917,3]
[349801596,1737436240649,-500.0,0.00021917,3]
[349801598,1737436240659,-411.25646923,0.00021917,3]
[349801600,1737436240669,-500.0,0.00021917,3]
[349801602,1737436240679,-500.0,0.00021917,3]
[349801604,1737436240688,-500.0,0.00021917,3]
[349801606,1737436240698,-214.51938479,0.00021917,3]
[349801608,1737436240708,-500.0,0.00021917,3]
[349801610,1737436240717,-1527.69,0.00021917,3]
[349801612,1737436240727,-500.0,0.00021917,3]
[349801614,1737436240736,-500.0,0.00021917,3]
[349801616,1737436240750,-500.0,0.00021917,3]
[349801618,1737436240760,-500.0,0.00021917,3]
[349801620,1737436240770,-500.0,0.00021917,3]
[349801622,1737436240779,-500.0,0.00021917,3]
[349801624,1737436240790,-500.0,0.00021917,3]
[349801626,1737436240799,-500.0,0.00021917,3]
[349801628,1737436240810,-953.42,0.00021917,3]
[349801630,1737436240822,-500.0,0.00021917,3]
[349801633,1737436240832,-500.0,0.00021917,3]
[349801635,1737436240842,-500.0,0.00021917,3]
[349801637,1737436240851,-500.0,0.00021917,3]
[349801639,1737436240860,-500.0,0.00021917,3]
[349801641,1737436240870,-500.0,0.00021917,3]
[349801643,1737436240879,-500.0,0.00021917,3]
[349801645,1737436240888,-500.0,0.00021917,3]
[349801647,1737436240897,-500.0,0.00021917,3]
[349801649,1737436240907,-500.0,0.00021917,3]
[349801651,1737436240917,-501.11187084,0.00021917,3]
[349801653,1737436240926,-500.0,0.00021917,3]
[349801655,1737436240935,-500.0,0.00021917,3]
[349801657,1737436240944,-500.0,0.00021917,3]
[349801659,1737436240954,-200.0,0.00021917,3]
[349801661,1737436240963,-500.0,0.00021917,3]
[349801663,1737436240973,-1913.55,0.00021917,3]
[349801665,1737436240983,-500.0,0.00021917,3]
[349801667,1737436240992,-500.0,0.00021917,3]
[349801669,1737436241001,-822.24,0.00021917,3]
[349801671,1737436241011,-500.0,0.00021917,3]
[349801673,1737436241020,-503.85839781,0.00021917,3]
[349801675,1737436241029,-500.0,0.00021917,3]
[349801677,1737436241038,-500.0,0.00021917,3]
[349801679,1737436241048,-500.0,0.00021917,3]
[349801681,1737436241058,-500.0,0.00021917,3]
[349801683,1737436241068,-500.0,0.00021917,3]
[349801685,1737436241077,-500.0,0.00021917,3]
[349801687,1737436241086,-824.53,0.00021917,3]
[349801689,1737436241095,-500.0,0.00021917,3]
[349801691,1737436241105,-568.30179641,0.00021917,3]
[349801693,1737436241114,-1171.5,0.00021917,3]
[349801695,1737436241124,-757.81,0.00021917,3]
[349801697,1737436241133,-504.25520608,0.00021917,3]
[349801699,1737436241142,-500.0,0.00021917,3]
[349801701,1737436241152,-500.0,0.00021917,3]
[349801703,1737436241161,-500.0,0.00021917,3]
[349801705,1737436241170,-730.74,0.00021917,3]
[349801707,1737436241179,-500.0,0.00021917,3]
[349801709,1737436241189,-1169.85,0.00021917,3]
[349801711,1737436241199,-717.4,0.00021917,3]
[349801713,1737436241208,-1423.53,0.00021917,3]
[349801715,1737436241217,-502.08121658,0.00021917,3]
[349801717,1737436241227,-500.0,0.00021917,3]
[349801719,1737436241236,-624.85,0.00021917,3]
[349801721,1737436241245,-500.0,0.00021917,3]
[349801723,1737436241255,-500.0,0.00021917,3]
[349801725,1737436241264,-500.0,0.00021917,3]
[349801727,1737436241274,-500.0,0.00021917,3]
[349801730,1737436241283,-500.0,0.00021917,3]
[349801732,1737436241293,-500.0,0.00021917,3]
[349801734,1737436241303,-813.03,0.00021917,3]
[349801736,1737436241312,-498.18056452,0.00021917,3]
[349801738,1737436241321,-500.0,0.00021917,3]
[349801740,1737436241331,-500.0,0.00021917,3]
[349801742,1737436241340,-500.0,0.00021917,3]
[349801744,1737436241349,-508.12787197,0.00021917,3]
[349801746,1737436241359,-500.0,0.00021917,3]
[349801748,1737436241368,-500.0,0.00021917,3]
[349801750,1737436241378,-500.0,0.00021917,3]
[349801752,1737436241388,-814.58,0.00021917,3]
[349801754,1737436241397,-500.0,0.00021917,3]
[349801756,1737436241406,-500.0,0.00021917,3]
[349801758,1737436241416,-827.27,0.00021917,3]
[349801760,1737436241425,-500.0,0.00021917,3]
[349801762,1737436241434,-500.0,0.00021917,3]
[349801764,1737436241444,-257.79173425,0.00021917,3]
[349801766,1737436241454,-500.0,0.00021917,3]
[349801768,1737436241463,-747.15,0.00021917,3]
[349801770,1737436241472,-500.0,0.00021917,3]
[349801772,1737436241482,-500.0,0.00021917,3]
[349801774,1737436241491,-681.43,0.00021917,3]
[349801776,1737436241501,-500.0,0.00021917,3]
[349801778,1737436241510,-500.0,0.00021917,3]
[349801780,1737436241520,-500.0,0.00021917,3]
[349801782,1737436241530,-500.0,0.00021917,3]
[349801784,1737436241540,-500.0,0.00021917,3]
[349801786,1737436241550,-500.0,0.00021917,3]
[349801788,1737436241559,-500.0,0.00021917,3]
[349801790,1737436241569,-500.0,0.00021917,3]
[349801809,1737436241735,-213.94515038,0.00021917,3]
[349801828,1737436241908,-286.05484962,0.00021917,3]
[349801830,1737436241920,-500.0,0.00021917,3]
[349801832,1737436241929,-500.0,0.00021917,3]
[349801834,1737436241939,-998.18,0.00021917,3]
[349801836,1737436241948,-500.81,0.00021917,3]
[349801838,1737436241957,-500.0,0.00021917,3]
[349801840,1737436241966,-500.0,0.00021917,3]
[349801842,1737436241976,-500.0,0.00021917,3]
[349801844,1737436241985,-500.0,0.00021917,3]
[349801846,1737436241995,-1253.69,0.00021917,3]
[349801848,1737436242004,-500.0,0.00021917,3]
[349801850,1737436242013,-502.16961548,0.00021917,3]
[349801852,1737436242023,-500.0,0.00021917,3]
[349801854,1737436242032,-539.27,0.00021917,3]
[349801856,1737436242042,-859.92,0.00021917,3]
[349801858,1737436242052,-500.0,0.00021917,3]
[349801860,1737436242061,-500.0,0.00021917,3]
[349801862,1737436242071,-1244.51,0.00021917,3]
[349801864,1737436242080,-502.53178297,0.00021917,3]
[349801866,1737436242089,-500.0,0.00021917,3]
[349801868,1737436242099,-500.0,0.00021917,3]
[349801870,1737436242108,-500.0,0.00021917,3]
[349801872,1737436242117,-500.0,0.00021917,3]
[349801874,1737436242126,-500.0,0.00021917,3]
[349801876,1737436242136,-500.0,0.00021917,3]
[349801878,1737436242145,-500.0,0.00021917,3]
[349801880,1737436242154,-503.55548747,0.00021917,3]
[349801882,1737436242163,-500.0,0.00021917,3]
[349801884,1737436242173,-856.94,0.00021917,3]
[349801887,1737436242182,-500.0,0.00021917,3]
[349801889,1737436242191,-500.0,0.00021917,3]
[349801890,1737436242201,-500.0,0.00021917,3]
[349801893,1737436242210,-503.48690619,0.00021917,3]
[349801895,1737436242219,-500.0,0.00021917,3]
[349801897,1737436242228,-500.0,0.00021917,3]
[349801899,1737436242238,-500.0,0.00021917,3]
[349801901,1737436242247,-500.0,0.00021917,3]
[349801903,1737436242257,-503.369536,0.00021917,3]
[349801905,1737436242266,-500.0,0.00021917,3]
[349801907,1737436242276,-500.0,0.00021917,3]
[349801909,1737436242285,-565.02,0.00021917,3]
[349801911,1737436242295,-500.0,0.00021917,3]
[349801913,1737436242304,-850.13,0.00021917,3]
[349801915,1737436242314,-500.0,0.00021917,3]
[349801917,1737436242323,-500.0,0.00021917,3]
[349801919,1737436242332,-500.0,0.00021917,3]
[349801921,1737436242342,-500.0,0.00021917,3]
[349801923,1737436242351,-511.72,0.00021917,3]
[349801925,1737436242361,-500.0,0.00021917,3]
[349801927,1737436242371,-500.0,0.00021917,3]
[349801929,1737436242380,-500.0,0.00021917,3]
[349801931,1737436242390,-500.0,0.00021917,3]
[349801933,1737436242399,-500.0,0.00021917,3]
[349801935,1737436242409,-252.48630424,0.00021917,3]
[349801937,1737436242418,-500.0,0.00021917,3]
[349801939,1737436242428,-500.0,0.00021917,3]
[349801941,1737436242437,-846.61,0.00021917,3]
[349801943,1737436242446,-500.0,0.00021917,3]
[349801945,1737436242455,-500.0,0.00021917,3]
[349801947,1737436242465,-500.0,0.00021917,3]
[349801949,1737436242474,-500.0,0.00021917,3]
[349801951,1737436242483,-504.44851768,0.00021917,3]
[349801954,1737436242493,-510.96,0.00021917,3]
[349801957,1737436242502,-329.28692318,0.00021917,3]
[349801960,1737436242511,-1671.98,0.00021917,2]
[349801962,1737436242521,-500.0,0.00021917,3]
[349801964,1737436242530,-500.0,0.00021917,3]
[349801966,1737436242539,-500.0,0.00021917,3]
[349801968,1737436242549,-500.0,0.00021917,3]
[349801971,1737436242559,-500.0,0.00021917,3]
[349801973,1737436242568,-500.0,0.00021917,3]
[349801976,1737436242580,-500.0,0.00021917,3]
[349801978,1737436242589,-500.0,0.00021917,3]
[349801980,1737436242599,-501.71054458,0.00021917,3]
[349801982,1737436242609,-500.0,0.00021917,3]
[349801984,1737436242618,-504.66258735,0.00021917,3]
[349801986,1737436242628,-1863.02,0.00021917,3]
[349801990,1737436242637,-500.0,0.00021917,3]
[349801994,1737436242647,-465.99978485,0.00021917,3]
[349801996,1737436242656,-7275.37,0.00021917,3]
[349801999,1737436242666,-500.0,0.00021917,3]
[349802004,1737436242675,-500.0,0.00021917,3]
[349802008,1737436242685,-500.0,0.00021917,3]
[349802012,1737436242694,-500.0,0.00021917,3]
[349802015,1737436242704,-503.37931678,0.00021917,3]
[349802018,1737436242713,-500.0,0.00021917,3]
[349802021,1737436242722,-5517.57,0.00021917,3]
[349802024,1737436242732,-500.0,0.00021917,3]
[349802027,1737436242741,-500.0,0.00021917,3]
[349802030,1737436242754,-501.94899465,0.00021917,3]
[349802033,1737436242763,-2016.17,0.00021917,3]
[349802036,1737436242773,-500.0,0.00021917,3]
[349802039,1737436242783,-718.57,0.00021917,3]
[349802042,1737436242793,-1581.02,0.00021917,3]
[349802045,1737436242803,-500.0,0.00021917,3]
[349802048,1737436242812,-500.0,0.00021917,3]
[349802051,1737436242821,-503.81395218,0.00021917,3]
[349802054,1737436242831,-500.0,0.00021917,3]
[349802057,1737436242840,-500.0,0.00021917,3]
[349802060,1737436242850,-849.72,0.00021917,3]
[349802063,1737436242860,-500.0,0.00021917,2]
[349802066,1737436242869,-500.0,0.00021917,3]
[349802069,1737436242878,-500.0,0.00021917,3]
[349802071,1737436242888,-500.0,0.00021917,3]
[349802074,1737436242897,-500.0,0.00021917,3]
[349802077,1737436242907,-500.0,0.00021917,3]
[349802080,1737436242916,-1294.2,0.00021917,3]
[349802083,1737436242925,-500.0,0.00021917,3]
[349802086,1737436242935,-500.0,0.00021917,3]
[349802089,1737436242944,-500.0,0.00021917,3]
[349802091,1737436242954,-567.86,0.00021917,3]
[349802094,1737436242963,-500.0,0.00021917,3]
[349802097,1737436242972,-795.86,0.00021917,3]
[349802100,1737436242982,-186.284711,0.00021917,2]
[349802103,1737436242991,-500.0,0.00021917,3]
[349802106,1737436243001,-500.0,0.00021917,3]
[349802109,1737436243010,-500.85657832,0.00021917,3]
[349802112,1737436243019,-500.0,0.00021917,3]
[349802115,1737436243029,-2490.81,0.00021917,3]
[349802118,1737436243038,-500.0,0.00021917,3]
[349802121,1737436243048,-500.0,0.00021917,3]
[349802124,1737436243057,-500.0,0.00021917,3]
[349802127,1737436243067,-602.21,0.00021917,3]
[349802130,1737436243076,-500.0,0.00021917,3]
[349802133,1737436243085,-503.40313686,0.00021917,3]
[349802136,1737436243095,-598.1,0.00021917,3]
[349802139,1737436243104,-500.0,0.00021917,3]
[349802142,1737436243114,-906.2,0.00021917,3]
[349802145,1737436243123,-502.72276762,0.00021917,3]
[349802148,1737436243132,-500.0,0.00021917,3]
[349802150,1737436243142,-500.0,0.00021917,3]
[349802152,1737436243151,-500.0,0.00021917,3]
[349802154,1737436243160,-500.0,0.00021917,3]
[349802156,1737436243169,-502.40772195,0.00021917,3]
[349802158,1737436243179,-500.0,0.00021917,3]
[349802160,1737436243188,-500.0,0.00021917,3]
[349802162,1737436243197,-500.0,0.00021917,3]
[349802164,1737436243207,-502.74631649,0.00021917,3]
[349802167,1737436243216,-500.0,0.00021917,3]
[349802169,1737436243226,-500.0,0.00021917,3]
[349802171,1737436243235,-500.0,0.00021917,3]
[349802173,1737436243244,-500.0,0.00021917,3]
[349802175,1737436243253,-500.0,0.00021917,3]
[349802177,1737436243262,-500.0,0.00021917,3]
[349802179,1737436243271,-500.0,0.00021917,3]
[349802181,1737436243281,-517.62,0.00021917,3]
[349802183,1737436243290,-500.0,0.00021917,3]
[349802185,1737436243301,-500.0,0.00021917,3]
[349802187,1737436243311,-500.0,0.00021917,3]
[349802189,1737436243320,-500.0,0.00021917,3]
[349802191,1737436243329,-500.0,0.00021917,3]
[349802193,1737436243339,-35047.46,0.00021917,3]
[349802195,1737436243348,-500.0,0.00021917,3]
[349802197,1737436243357,-3672.32,0.00021917,3]
[349802199,1737436243366,-500.0,0.00021917,3]
[349802201,1737436243376,-8328.07,0.00021917,3]
[349802203,1737436243385,-500.0,0.00021917,3]
[349802205,1737436243394,-500.0,0.00021917,3]
[349802207,1737436243403,-16648.53,0.00021917,3]
[349802209,1737436243412,-503.74877223,0.00021917,3]
[349802211,1737436243423,-989.27,0.00021917,3]
[349802213,1737436243432,-500.0,0.00021917,3]
[349802215,1737436243442,-500.0,0.00021917,3]
[349802217,1737436243451,-2149.07,0.00021917,3]
[349802219,1737436243460,-500.0,0.00021917,3]
[349802221,1737436243470,-500.0,0.00021917,3]
[349802223,1737436243479,-202.68673891,0.00021917,3]
[349802225,1737436243488,-500.0,0.00021917,3]
[349802227,1737436243498,-500.0,0.00021917,3]
[349802229,1737436243507,-500.0,0.00021917,3]
[349802231,1737436243517,-500.0,0.00021917,3]
[349802233,1737436243526,-500.0,0.00021917,3]
[349802235,1737436243536,-500.0,0.00021917,3]
[349802236,1737436243546,-500.0,0.00021917,3]
[349802237,1737436243556,-1654.0,0.00021917,3]
[349802238,1737436243565,-714.08,0.00021917,3]
[349802239,1737436243575,-500.0,0.00021917,3]
[349802240,1737436243585,-500.0,0.00021917,3]
[349802241,1737436243594,-809.87,0.00021917,3]
[349802242,1737436243604,-500.0,0.00021917,3]
[349802243,1737436243613,-500.0,0.00021917,3]
[349802244,1737436243623,-507.52397325,0.00021917,3]
[349802245,1737436243632,-1737.78,0.00021917,3]
[349802246,1737436243642,-520.12,0.00021917,3]
[349802247,1737436243651,-500.0,0.00021917,3]
[349802248,1737436243660,-500.0,0.00021917,3]
[349802249,1737436243670,-941.94,0.00021917,3]
[349802250,1737436243679,-668.23,0.00021917,3]
[349802251,1737436243689,-500.0,0.00021917,3]
[349802252,1737436243698,-4729.29,0.00021917,3]
[349802254,1737436243707,-500.0,0.00021917,3]
[349802256,1737436243717,-760.16,0.00021917,3]
[349802258,1737436243726,-500.0,0.00021917,3]
[349802260,1737436243736,-503.79687182,0.00021917,3]
[349802262,1737436243746,-632.16624187,0.00021917,3]
[349802264,1737436243757,-500.0,0.00021917,3]
[349802266,1737436243766,-500.0,0.00021917,3]
[349802268,1737436243776,-500.0,0.00021917,3]
[349802270,1737436243786,-1266.7,0.00021917,3]
[349802272,1737436243796,-500.0,0.00021917,3]
[349802274,1737436243806,-502.7675748,0.00021917,3]
[349802276,1737436243815,-500.0,0.00021917,3]
[349802278,1737436243826,-500.0,0.00021917,3]
[349802280,1737436243836,-500.0,0.00021917,3]
[349802282,1737436243845,-502.64514667,0.00021917,3]
[349802284,1737436243855,-500.0,0.00021917,3]
[349802286,1737436243865,-502.0488432,0.00021917,3]
[349802288,1737436243875,-500.0,0.00021917,3]
[349802290,1737436243884,-836.8,0.00021917,3]
[349802292,1737436243893,-151.0,0.00021917,2]
[349802294,1737436243903,-502.25731096,0.00021917,3]
[349802296,1737436243913,-151.0,0.00021917,2]
[349802298,1737436243923,-151.0,0.00021917,2]
[349802300,1737436243932,-151.0,0.00021917,2]
[349802302,1737436243941,-924.68,0.00021917,3]
[349802304,1737436243950,-151.0,0.00021917,2]
[349802306,1737436243960,-151.0,0.00021917,2]
[349802308,1737436243969,-151.0,0.00021917,2]
[349802310,1737436243978,-151.0,0.00021917,2]
[349802312,1737436243988,-504.14668299,0.00021917,3]
[349802314,1737436243998,-2889.09,0.00021917,3]
[349802316,1737436244007,-500.0,0.00021917,3]
[349802318,1737436244016,-966.7,0.00021917,3]
[349802320,1737436244025,-500.0,0.00021917,3]
[349802322,1737436244035,-534.3553173,0.00021917,3]
[349802324,1737436244044,-1666.36,0.00021917,3]
[349802326,1737436244054,-500.0,0.00021917,3]
[349802328,1737436244063,-600.5844107,0.00021917,3]
[349802330,1737436244072,-325.20890191,0.00021917,3]
[349802332,1737436244082,-725.57,0.00021917,3]
[349802334,1737436244091,-500.0,0.00021917,3]
[349802336,1737436244101,-500.0,0.00021917,3]
[349802338,1737436244110,-500.0,0.00021917,3]
[349802340,1737436244120,-4625.09,0.00021917,3]
[349802342,1737436244130,-4079.3,0.00021917,3]
[349802344,1737436244139,-522.87,0.00021917,3]
[349802346,1737436244148,-510.24562768,0.00021917,3]
[349802348,1737436244157,-502.69434425,0.00021917,3]
[349802350,1737436244167,-505.38931551,0.00021917,3]
[349802352,1737436244176,-500.0,0.00021917,3]
[349802354,1737436244185,-500.0,0.00021917,3]
[349802356,1737436244194,-7980.33,0.00021917,3]
[349802358,1737436244204,-500.0,0.00021917,3]
[349802360,1737436244213,-3321.54,0.00021917,3]
[349802362,1737436244222,-414.55237561,0.00021917,3]
[349802364,1737436244232,-2125.78,0.00021917,3]
[349802366,1737436244241,-700.2,0.00021917,3]
[349802368,1737436244250,-500.0,0.00021917,3]
[349802370,1737436244260,-500.0,0.00021917,3]
[349802389,1737436244424,-500.0,0.00021917,3]
[349802391,1737436244435,-12319.31,0.00021917,3]
[349802393,1737436244445,-500.0,0.00021917,3]
[349802395,1737436244455,-654.58,0.00021917,3]
[349802397,1737436244465,-500.0,0.00021917,3]
[349802399,1737436244474,-500.0,0.00021917,3]
[349802401,1737436244484,-1504.03,0.00021917,3]
[349802403,1737436244493,-581.59,0.00021917,3]
[349802405,1737436244503,-500.0,0.00021917,3]
[349802407,1737436244513,-1705.49,0.00021917,3]
[349802409,1737436244522,-500.0,0.00021917,3]
[349802411,1737436244533,-1357.55,0.00021917,3]
[349802413,1737436244543,-500.0,0.00021917,3]
[349802414,1737436244553,-500.0,0.00021917,3]
[349802417,1737436244562,-500.0,0.00021917,3]
[349802418,1737436244572,-500.0,0.00021917,3]
[349802420,1737436244582,-500.0,0.00021917,3]
[349802422,1737436244592,-260.74590118,0.00021917,3]
[349802425,1737436244601,-841.13,0.00021917,3]
[349802427,1737436244611,-938.07,0.00021917,3]
[349802429,1737436244621,-688.07,0.00021917,3]
[349802431,1737436244630,-500.0,0.00021917,3]
[349802433,1737436244640,-500.0,0.00021917,3]
[349802435,1737436244649,-500.0,0.00021917,3]
[349802437,1737436244659,-2173.27,0.00021917,3]
[349802439,1737436244668,-500.0,0.00021917,3]
[349802441,1737436244678,-500.0,0.00021917,3]
[349802443,1737436244687,-544.6,0.00021917,3]
[349802445,1737436244696,-47576.26,0.00021917,3]
[349802447,1737436244706,-676.95,0.00021917,3]
[349802449,1737436244715,-500.0,0.00021917,3]
[349802451,1737436244724,-500.0,0.00021917,3]
[349802453,1737436244734,-500.0,0.00021917,3]
[349802455,1737436244744,-500.0,0.00021917,3]
[349802457,1737436244758,-500.0,0.00021917,3]
[349802459,1737436244767,-500.0,0.00021917,3]
[349802461,1737436244777,-500.0,0.00021917,3]